[Event "Titled Tuesday Blitz January 17 Late 2023"]
[White "Averjanov, Alexey"]
[Black "TheKnightOfBosnia"]
[WhiteFideId "14109867"]
[WhiteElo "2399"]
[BlackElo "2530"]
[Result "1-0"]
[Round "08"]
[TimeControl "180+2"]
[Date "2023.01.17"]
[WhiteClock "0:00:45"]
[BlackClock "0:00:05"]

1. d4 {[%clk 0:02:48]}  Nf6 {[%clk 0:02:59]} 2. c4 {[%clk 0:02:46]}  e6 {[%clk 0:03:00]} 3. Nf3 {[%clk 0:02:46]}  Bb4+ {[%clk 0:02:59]} 4. Nbd2 {[%clk 0:02:46]}  O-O {[%clk 0:02:59]} 5. g3 {[%clk 0:02:46]}  b6 {[%clk 0:02:56]} 6. Bg2 {[%clk 0:02:46]}  Bb7 {[%clk 0:02:56]} 7. O-O {[%clk 0:02:46]}  d6 {[%clk 0:02:54]} 8. Nb3 {[%clk 0:02:45]}  d5 {[%clk 0:02:52]} 9. c5 {[%clk 0:02:45]}  bxc5 {[%clk 0:02:48]} 10. dxc5 {[%clk 0:02:45]}  Na6 {[%clk 0:02:45]} 11. Qc2 {[%clk 0:02:38]}  Qe7 {[%clk 0:02:38]} 12. Be3 {[%clk 0:02:26]}  Ne4 {[%clk 0:02:20]} 13. Rac1 {[%clk 0:02:21]}  Bc6 {[%clk 0:02:02]} 14. a3 {[%clk 0:02:19]}  Ba4 {[%clk 0:02:02]} 15. axb4 {[%clk 0:02:15]}  Nxb4 {[%clk 0:02:03]} 16. Qd1 {[%clk 0:02:13]}  Rab8 {[%clk 0:02:01]} 17. Ra1 {[%clk 0:02:07]}  Qe8 {[%clk 0:01:43]} 18. Ra3 {[%clk 0:01:55]}  Na6 {[%clk 0:01:15]} 19. Qd3 {[%clk 0:01:48]}  Rxb3 {[%clk 0:01:00]} 20. Rxb3 {[%clk 0:01:46]}  Naxc5 {[%clk 0:00:50]} 21. Bxc5 {[%clk 0:01:45]}  Nxc5 {[%clk 0:00:51]} 22. Qc3 {[%clk 0:01:42]}  Nxb3 {[%clk 0:00:48]} 23. Qxc7 {[%clk 0:01:42]}  a5 {[%clk 0:00:41]} 24. e3 {[%clk 0:01:34]}  Qc6 {[%clk 0:00:37]} 25. Qe5 {[%clk 0:01:28]}  Rc8 {[%clk 0:00:31]} 26. Nd4 {[%clk 0:01:23]}  Nxd4 {[%clk 0:00:31]} 27. Qxd4 {[%clk 0:01:23]}  Qc4 {[%clk 0:00:31]} 28. Qb6 {[%clk 0:01:21]}  Qb5 {[%clk 0:00:19]} 29. Qa7 {[%clk 0:01:17]}  h6 {[%clk 0:00:15]} 30. Ra1 {[%clk 0:01:13]}  Rc2 {[%clk 0:00:15]} 31. Bf1 {[%clk 0:01:10]}  Qb4 {[%clk 0:00:14]} 32. Qa8+ {[%clk 0:01:05]}  Kh7 {[%clk 0:00:09]} 33. Bd3+ {[%clk 0:01:05]}  g6 {[%clk 0:00:09]} 34. Bxc2 {[%clk 0:01:01]}  Bxc2 {[%clk 0:00:10]} 35. Qa7 {[%clk 0:00:57]}  Kg7 {[%clk 0:00:09]} 36. Qd4+ {[%clk 0:00:49]}  Qxd4 {[%clk 0:00:09]} 37. exd4 {[%clk 0:00:49]}  a4 {[%clk 0:00:10]} 38. Rc1 {[%clk 0:00:48]}  Bb3 {[%clk 0:00:10]} 39. f4 {[%clk 0:00:48]}  Kf6 {[%clk 0:00:10]} 40. Kf2 {[%clk 0:00:48]}  Ke7 {[%clk 0:00:10]} 41. Ke3 {[%clk 0:00:48]}  Kd6 {[%clk 0:00:10]} 42. Rc8 {[%clk 0:00:47]}  Ke7 {[%clk 0:00:09]} 43. Rc7+ {[%clk 0:00:47]}  Kf6 {[%clk 0:00:09]} 44. g4 {[%clk 0:00:47]}  Bd1 {[%clk 0:00:09]} 45. h3 {[%clk 0:00:46]}  Bb3 {[%clk 0:00:08]} 46. Ra7 {[%clk 0:00:45]}  Kg7 {[%clk 0:00:08]} 47. g5 {[%clk 0:00:45]}  hxg5 {[%clk 0:00:07]} 48. fxg5 {[%clk 0:00:45]}  Kf8 {[%clk 0:00:08]} 49. Kf4 {[%clk 0:00:45]}  Bc2 {[%clk 0:00:06]} 50. Ke5 {[%clk 0:00:45]}  Bf5 {[%clk 0:00:06]} 51. h4 {[%clk 0:00:45]}  Bc2 {[%clk 0:00:05]} 52. Kf6 {[%clk 0:00:45]} 1-0


[Site "https://www.chess.com"]

[Event "Titled Tuesday Blitz January 17 Late 2023"]
[White "Carnicelli, Valerio"]
[Black "Pasti, Aron"]
[WhiteFideId "856185"]
[BlackFideId "785857"]
[WhiteElo "2370"]
[BlackElo "2361"]
[Result "0-1"]
[Round "08"]
[TimeControl "180+2"]
[Date "2023.01.17"]
[WhiteClock "0:01:26"]
[BlackClock "0:01:19"]

1. b3 {[%clk 0:03:00]}  d5 {[%clk 0:02:48]} 2. Bb2 {[%clk 0:03:01]}  c6 {[%clk 0:02:47]} 3. d3 {[%clk 0:03:00]}  Nd7 {[%clk 0:02:48]} 4. Nd2 {[%clk 0:03:00]}  e5 {[%clk 0:02:48]} 5. e4 {[%clk 0:02:59]}  Ngf6 {[%clk 0:02:48]} 6. g3 {[%clk 0:02:58]}  Bd6 {[%clk 0:02:48]} 7. Bg2 {[%clk 0:02:58]}  O-O {[%clk 0:02:48]} 8. Ne2 {[%clk 0:02:57]}  Re8 {[%clk 0:02:47]} 9. O-O {[%clk 0:02:57]}  Nf8 {[%clk 0:02:47]} 10. a3 {[%clk 0:02:46]}  Bg4 {[%clk 0:02:44]} 11. f3 {[%clk 0:02:45]}  Be6 {[%clk 0:02:43]} 12. c4 {[%clk 0:02:43]}  a5 {[%clk 0:02:40]} 13. f4 {[%clk 0:02:28]}  Ng4 {[%clk 0:02:33]} 14. f5 {[%clk 0:02:10]}  Ne3 {[%clk 0:02:24]} 15. Qc1 {[%clk 0:02:06]}  Nxf1 {[%clk 0:02:15]} 16. fxe6 {[%clk 0:01:50]}  Nxd2 {[%clk 0:02:05]} 17. exf7+ {[%clk 0:01:50]}  Kxf7 {[%clk 0:02:05]} 18. Qxd2 {[%clk 0:01:51]}  Qb6+ {[%clk 0:02:05]} 19. Kh1 {[%clk 0:01:46]}  d4 {[%clk 0:02:05]} 20. Rf1+ {[%clk 0:01:37]}  Kg8 {[%clk 0:02:04]} 21. Nc1 {[%clk 0:01:38]}  Ne6 {[%clk 0:01:59]} 22. Bh3 {[%clk 0:01:37]}  h6 {[%clk 0:01:57]} 23. Qe2 {[%clk 0:01:29]}  Ng5 {[%clk 0:01:50]} 24. Bf5 {[%clk 0:01:28]}  Rf8 {[%clk 0:01:47]} 25. h4 {[%clk 0:01:26]}  Nf7 {[%clk 0:01:19]} 0-1


[Site "https://www.chess.com"]

[Event "Titled Tuesday Blitz January 17 Late 2023"]
[White "Kleiman, Jake"]
[Black "Leenhouts, Koen"]
[WhiteFideId "2020041"]
[BlackFideId "1008439"]
[WhiteElo "2399"]
[BlackElo "2447"]
[Result "1/2-1/2"]
[Round "08"]
[TimeControl "180+2"]
[Date "2023.01.17"]
[WhiteClock "0:00:13"]
[BlackClock "0:00:06"]

1. e4 {[%clk 0:03:00]}  e5 {[%clk 0:02:50]} 2. Nf3 {[%clk 0:03:00]}  d6 {[%clk 0:02:50]} 3. d4 {[%clk 0:02:59]}  exd4 {[%clk 0:02:49]} 4. Nxd4 {[%clk 0:03:00]}  Nf6 {[%clk 0:02:49]} 5. Nc3 {[%clk 0:03:01]}  Be7 {[%clk 0:02:48]} 6. g3 {[%clk 0:03:01]}  O-O {[%clk 0:02:46]} 7. Bg2 {[%clk 0:03:02]}  c6 {[%clk 0:02:46]} 8. O-O {[%clk 0:03:02]}  Re8 {[%clk 0:02:37]} 9. a4 {[%clk 0:03:02]}  a5 {[%clk 0:02:33]} 10. h3 {[%clk 0:03:02]}  Na6 {[%clk 0:02:30]} 11. Nde2 {[%clk 0:02:55]}  Bf8 {[%clk 0:02:26]} 12. Be3 {[%clk 0:02:50]}  Nb4 {[%clk 0:02:11]} 13. g4 {[%clk 0:02:44]}  g6 {[%clk 0:01:58]} 14. Ng3 {[%clk 0:02:42]}  d5 {[%clk 0:01:32]} 15. g5 {[%clk 0:01:50]}  Nxe4 {[%clk 0:01:29]} 16. Ncxe4 {[%clk 0:01:50]}  dxe4 {[%clk 0:01:29]} 17. Nxe4 {[%clk 0:01:51]}  Bg7 {[%clk 0:01:05]} 18. c3 {[%clk 0:01:37]}  Nd5 {[%clk 0:01:01]} 19. Bd4 {[%clk 0:01:28]}  Bxh3 {[%clk 0:00:44]} 20. Bxg7 {[%clk 0:01:05]}  Rxe4 {[%clk 0:00:35]} 21. Bxh3 {[%clk 0:00:30]}  Qxg5+ {[%clk 0:00:25]} 22. Kh1 {[%clk 0:00:27]}  Rh4 {[%clk 0:00:17]} 23. Qf3 {[%clk 0:00:27]}  Nf4 {[%clk 0:00:16]} 24. Rg1 {[%clk 0:00:24]}  Rxh3+ {[%clk 0:00:15]} 25. Qxh3 {[%clk 0:00:24]}  Nxh3 {[%clk 0:00:16]} 26. Rxg5 {[%clk 0:00:25]}  Nxg5 {[%clk 0:00:16]} 27. Bd4 {[%clk 0:00:25]}  Ne6 {[%clk 0:00:15]} 28. Bb6 {[%clk 0:00:25]}  Kf8 {[%clk 0:00:08]} 29. Rd1 {[%clk 0:00:26]}  Ke7 {[%clk 0:00:09]} 30. Kg2 {[%clk 0:00:26]}  h5 {[%clk 0:00:08]} 31. Kg3 {[%clk 0:00:26]}  g5 {[%clk 0:00:08]} 32. f3 {[%clk 0:00:26]}  h4+ {[%clk 0:00:08]} 33. Kg4 {[%clk 0:00:26]}  Rg8 {[%clk 0:00:08]} 34. Bxa5 {[%clk 0:00:26]}  Rh8 {[%clk 0:00:08]} 35. Bb4+ {[%clk 0:00:24]}  Kf6 {[%clk 0:00:08]} 36. c4 {[%clk 0:00:23]}  Kg6 {[%clk 0:00:08]} 37. Bc3 {[%clk 0:00:21]}  Rh7 {[%clk 0:00:08]} 38. Kh3 {[%clk 0:00:20]}  Nf4+ {[%clk 0:00:07]} 39. Kh2 {[%clk 0:00:21]}  f5 {[%clk 0:00:07]} 40. Rd6+ {[%clk 0:00:21]}  Kh5 {[%clk 0:00:07]} 41. Be5 {[%clk 0:00:20]}  Re7 {[%clk 0:00:07]} 42. Bf6 {[%clk 0:00:18]}  Re2+ {[%clk 0:00:06]} 43. Kg1 {[%clk 0:00:18]}  Rg2+ {[%clk 0:00:05]} 44. Kh1 {[%clk 0:00:18]}  h3 {[%clk 0:00:06]} 45. Rd7 {[%clk 0:00:16]}  Kg6 {[%clk 0:00:04]} 46. Be5 {[%clk 0:00:16]}  Re2 {[%clk 0:00:05]} 47. Bb8 {[%clk 0:00:14]}  Re1+ {[%clk 0:00:04]} 48. Kh2 {[%clk 0:00:14]}  Re2+ {[%clk 0:00:05]} 49. Kh1 {[%clk 0:00:15]}  Nh5 {[%clk 0:00:05]} 50. Rd6+ {[%clk 0:00:14]}  Kf7 {[%clk 0:00:05]} 51. Rd7+ {[%clk 0:00:14]}  Ke6 {[%clk 0:00:04]} 52. Rh7 {[%clk 0:00:14]}  Nf4 {[%clk 0:00:04]} 53. Rh6+ {[%clk 0:00:12]}  Kd7 {[%clk 0:00:03]} 54. b4 {[%clk 0:00:12]}  Re1+ {[%clk 0:00:03]} 55. Kh2 {[%clk 0:00:13]}  Re2+ {[%clk 0:00:03]} 56. Kh1 {[%clk 0:00:13]}  Re1+ {[%clk 0:00:04]} 57. Kh2 {[%clk 0:00:13]}  Re2+ {[%clk 0:00:04]} 58. Kg1 {[%clk 0:00:13]}  Re1+ {[%clk 0:00:04]} 59. Kf2 {[%clk 0:00:14]}  Re2+ {[%clk 0:00:04]} 60. Kf1 {[%clk 0:00:14]}  Rc2 {[%clk 0:00:05]} 61. b5 {[%clk 0:00:14]}  cxb5 {[%clk 0:00:04]} 62. cxb5 {[%clk 0:00:14]}  Ra2 {[%clk 0:00:04]} 63. Rh7+ {[%clk 0:00:14]}  Ke6 {[%clk 0:00:04]} 64. Rh6+ {[%clk 0:00:14]}  Kd5 {[%clk 0:00:04]} 65. Bxf4 {[%clk 0:00:14]}  gxf4 {[%clk 0:00:04]} 66. Rxh3 {[%clk 0:00:14]}  Rxa4 {[%clk 0:00:05]} 67. Rh7 {[%clk 0:00:15]}  Ra1+ {[%clk 0:00:05]} 68. Kg2 {[%clk 0:00:15]}  b6 {[%clk 0:00:06]} 69. Rb7 {[%clk 0:00:14]}  Ra2+ {[%clk 0:00:06]} 70. Kh3 {[%clk 0:00:14]}  Kc5 {[%clk 0:00:07]} 71. Rf7 {[%clk 0:00:14]}  Kxb5 {[%clk 0:00:07]} 72. Rxf5+ {[%clk 0:00:15]}  Kc4 {[%clk 0:00:07]} 73. Rxf4+ {[%clk 0:00:16]}  Kc3 {[%clk 0:00:07]} 74. Rf6 {[%clk 0:00:16]}  b5 {[%clk 0:00:07]} 75. Rc6+ {[%clk 0:00:16]}  Kd3 {[%clk 0:00:07]} 76. Rb6 {[%clk 0:00:15]}  Kc4 {[%clk 0:00:07]} 77. f4 {[%clk 0:00:15]}  b4 {[%clk 0:00:07]} 78. f5 {[%clk 0:00:15]}  b3 {[%clk 0:00:07]} 79. Kg4 {[%clk 0:00:13]}  Rf2 {[%clk 0:00:07]} 80. Kg5 {[%clk 0:00:13]}  Kc3 {[%clk 0:00:07]} 81. f6 {[%clk 0:00:12]}  b2 {[%clk 0:00:08]} 82. Kg6 {[%clk 0:00:12]}  Rg2+ {[%clk 0:00:08]} 83. Kh7 {[%clk 0:00:12]}  Rh2+ {[%clk 0:00:08]} 84. Kg7 {[%clk 0:00:12]}  Rg2+ {[%clk 0:00:09]} 85. Kh8 {[%clk 0:00:11]}  Rh2+ {[%clk 0:00:09]} 86. Kg8 {[%clk 0:00:11]}  Rg2+ {[%clk 0:00:09]} 87. Kf8 {[%clk 0:00:12]}  Rg4 {[%clk 0:00:08]} 88. Rc6+ {[%clk 0:00:09]}  Rc4 {[%clk 0:00:06]} 89. Rb6 {[%clk 0:00:10]}  Rb4 {[%clk 0:00:06]} 90. Rxb4 {[%clk 0:00:08]}  Kxb4 {[%clk 0:00:06]} 91. f7 {[%clk 0:00:08]}  b1=Q {[%clk 0:00:06]} 92. Kg8 {[%clk 0:00:09]}  Qg1+ {[%clk 0:00:06]} 93. Kh8 {[%clk 0:00:10]}  Qh2+ {[%clk 0:00:06]} 94. Kg8 {[%clk 0:00:10]}  Qg3+ {[%clk 0:00:07]} 95. Kh8 {[%clk 0:00:11]}  Qh4+ {[%clk 0:00:07]} 96. Kg8 {[%clk 0:00:11]}  Qg5+ {[%clk 0:00:08]} 97. Kh8 {[%clk 0:00:12]}  Qh5+ {[%clk 0:00:08]} 98. Kg8 {[%clk 0:00:12]}  Qg6+ {[%clk 0:00:08]} 99. Kh8 {[%clk 0:00:13]}  Qd6 {[%clk 0:00:07]} 100. Kg8 {[%clk 0:00:12]}  Qe7 {[%clk 0:00:08]} 101. f8=Q {[%clk 0:00:12]}  Qxf8+ {[%clk 0:00:06]} 102. Kxf8 {[%clk 0:00:13]} 1/2-1/2


[Site "https://www.chess.com"]

[Event "Titled Tuesday Blitz January 17 Late 2023"]
[White "Chor, Kevin"]
[Black "Perez Perez, Gabriel"]
[WhiteFideId "2090740"]
[BlackFideId "32089147"]
[WhiteElo "1944"]
[BlackElo "2185"]
[Result "1-0"]
[Round "08"]
[TimeControl "180+2"]
[Date "2023.01.17"]
[WhiteClock "0:00:18"]
[BlackClock "0:00:01"]

1. e4 {[%clk 0:03:00]}  c6 {[%clk 0:02:54]} 2. d4 {[%clk 0:03:00]}  d5 {[%clk 0:02:55]} 3. exd5 {[%clk 0:03:01]}  cxd5 {[%clk 0:02:55]} 4. c4 {[%clk 0:03:02]}  Nf6 {[%clk 0:02:54]} 5. Nc3 {[%clk 0:03:02]}  Nc6 {[%clk 0:02:54]} 6. Bg5 {[%clk 0:03:01]}  dxc4 {[%clk 0:02:40]} 7. Bxc4 {[%clk 0:03:02]}  e6 {[%clk 0:02:29]} 8. Nf3 {[%clk 0:03:00]}  Be7 {[%clk 0:02:29]} 9. O-O {[%clk 0:02:59]}  O-O {[%clk 0:02:27]} 10. Re1 {[%clk 0:02:57]}  b6 {[%clk 0:02:26]} 11. d5 {[%clk 0:02:09]}  Na5 {[%clk 0:02:25]} 12. Bb5 {[%clk 0:01:56]}  Nxd5 {[%clk 0:02:19]} 13. Bxe7 {[%clk 0:01:40]}  Nxe7 {[%clk 0:02:19]} 14. Qa4 {[%clk 0:01:36]}  a6 {[%clk 0:02:09]} 15. Bf1 {[%clk 0:01:27]}  b5 {[%clk 0:02:09]} 16. Qe4 {[%clk 0:01:21]}  Bb7 {[%clk 0:01:59]} 17. Qg4 {[%clk 0:01:21]}  Nf5 {[%clk 0:01:49]} 18. Rad1 {[%clk 0:01:19]}  Qf6 {[%clk 0:01:45]} 19. Ne5 {[%clk 0:01:19]}  Rad8 {[%clk 0:01:32]} 20. Nd7 {[%clk 0:01:17]}  Qh6 {[%clk 0:00:52]} 21. Nxf8 {[%clk 0:01:13]}  Rxf8 {[%clk 0:00:53]} 22. Rd7 {[%clk 0:01:06]}  Bc6 {[%clk 0:00:51]} 23. Ra7 {[%clk 0:01:06]}  Qd2 {[%clk 0:00:46]} 24. Qe2 {[%clk 0:00:57]}  Qd8 {[%clk 0:00:40]} 25. Rxa6 {[%clk 0:00:51]}  Bb7 {[%clk 0:00:39]} 26. Ra7 {[%clk 0:00:49]}  Qb6 {[%clk 0:00:39]} 27. Nxb5 {[%clk 0:00:48]}  Ba6 {[%clk 0:00:22]} 28. Rd7 {[%clk 0:00:41]}  Nd4 {[%clk 0:00:13]} 29. Qe3 {[%clk 0:00:34]}  Bxb5 {[%clk 0:00:11]} 30. Qxd4 {[%clk 0:00:32]}  Qa6 {[%clk 0:00:04]} 31. Ra7 {[%clk 0:00:26]}  Nc6 {[%clk 0:00:05]} 32. Rxa6 {[%clk 0:00:24]}  Nxd4 {[%clk 0:00:05]} 33. Bxb5 {[%clk 0:00:25]}  Nxb5 {[%clk 0:00:05]} 34. a4 {[%clk 0:00:24]}  Nd4 {[%clk 0:00:05]} 35. Rd6 {[%clk 0:00:19]}  Nb3 {[%clk 0:00:01]} 36. Red1 {[%clk 0:00:18]} 1-0


[Site "https://www.chess.com"]

[Event "Titled Tuesday Blitz January 17 Late 2023"]
[White "Vovk, Orest"]
[Black "Czernek, Tymon"]
[WhiteFideId "14113490"]
[BlackFideId "1199510"]
[WhiteElo "2315"]
[BlackElo "2314"]
[Result "1/2-1/2"]
[Round "08"]
[TimeControl "180+2"]
[Date "2023.01.17"]
[WhiteClock "0:00:04"]
[BlackClock "0:00:10"]

1. h4 {[%clk 0:02:54]}  e5 {[%clk 0:02:57]} 2. h5 {[%clk 0:02:55]}  d5 {[%clk 0:02:44]} 3. h6 {[%clk 0:02:54]}  Nxh6 {[%clk 0:02:41]} 4. d4 {[%clk 0:02:54]}  Nc6 {[%clk 0:02:37]} 5. Bxh6 {[%clk 0:02:53]}  gxh6 {[%clk 0:02:37]} 6. dxe5 {[%clk 0:02:54]}  Nxe5 {[%clk 0:02:37]} 7. Nf3 {[%clk 0:02:54]}  Nxf3+ {[%clk 0:02:36]} 8. gxf3 {[%clk 0:02:55]}  Be6 {[%clk 0:02:33]} 9. Qd4 {[%clk 0:02:53]}  Rg8 {[%clk 0:02:31]} 10. Nc3 {[%clk 0:02:53]}  Bg7 {[%clk 0:02:29]} 11. Qa4+ {[%clk 0:02:52]}  Qd7 {[%clk 0:02:26]} 12. Qxd7+ {[%clk 0:02:51]}  Kxd7 {[%clk 0:02:26]} 13. O-O-O {[%clk 0:02:52]}  c6 {[%clk 0:02:09]} 14. e4 {[%clk 0:02:50]}  d4 {[%clk 0:02:05]} 15. Ne2 {[%clk 0:02:42]}  c5 {[%clk 0:02:04]} 16. Nf4 {[%clk 0:02:32]}  Be5 {[%clk 0:01:55]} 17. Nxe6 {[%clk 0:02:30]}  fxe6 {[%clk 0:01:56]} 18. Rh5 {[%clk 0:02:17]}  Kd6 {[%clk 0:01:51]} 19. Kd2 {[%clk 0:02:08]}  Raf8 {[%clk 0:01:38]} 20. Ke2 {[%clk 0:02:07]}  Rf6 {[%clk 0:01:33]} 21. Bh3 {[%clk 0:02:03]}  Rg5 {[%clk 0:01:32]} 22. Rh4 {[%clk 0:01:58]}  h5 {[%clk 0:01:22]} 23. Rh1 {[%clk 0:01:51]}  Rf4 {[%clk 0:01:16]} 24. Bf1 {[%clk 0:01:44]}  Rxh4 {[%clk 0:01:05]} 25. Rxh4 {[%clk 0:01:44]}  Bh8 {[%clk 0:00:50]} 26. f4 {[%clk 0:01:34]}  Rg4 {[%clk 0:00:50]} 27. Rxh5 {[%clk 0:01:35]}  Rxf4 {[%clk 0:00:50]} 28. Rxh7 {[%clk 0:01:34]}  Rxe4+ {[%clk 0:00:44]} 29. Kd3 {[%clk 0:01:24]}  Re1 {[%clk 0:00:44]} 30. Bg2 {[%clk 0:01:22]}  Be5 {[%clk 0:00:29]} 31. Rxb7 {[%clk 0:01:20]}  Bf4 {[%clk 0:00:28]} 32. Rxa7 {[%clk 0:01:05]}  Rd1+ {[%clk 0:00:24]} 33. Kc4 {[%clk 0:00:57]}  Rd2 {[%clk 0:00:24]} 34. Be4 {[%clk 0:00:57]}  Rxf2 {[%clk 0:00:23]} 35. Ra6+ {[%clk 0:00:56]}  Ke5 {[%clk 0:00:23]} 36. Bd3 {[%clk 0:00:55]}  Be3 {[%clk 0:00:23]} 37. Kxc5 {[%clk 0:00:52]}  Rxc2+ {[%clk 0:00:24]} 38. Kb5 {[%clk 0:00:37]}  Rxb2+ {[%clk 0:00:24]} 39. Kc4 {[%clk 0:00:37]}  Rd2 {[%clk 0:00:20]} 40. a4 {[%clk 0:00:34]}  Rd1 {[%clk 0:00:20]} 41. Ra8 {[%clk 0:00:26]}  Rc1+ {[%clk 0:00:20]} 42. Kb5 {[%clk 0:00:25]}  Bd2 {[%clk 0:00:17]} 43. a5 {[%clk 0:00:22]}  Rc3 {[%clk 0:00:13]} 44. Bc4 {[%clk 0:00:21]}  d3 {[%clk 0:00:13]} 45. Re8 {[%clk 0:00:18]}  Bf4 {[%clk 0:00:05]} 46. Rxe6+ {[%clk 0:00:16]}  Kd4 {[%clk 0:00:05]} 47. a6 {[%clk 0:00:12]}  d2 {[%clk 0:00:04]} 48. Be2 {[%clk 0:00:11]}  Ra3 {[%clk 0:00:03]} 49. Re7 {[%clk 0:00:08]}  Kc3 {[%clk 0:00:03]} 50. Rd7 {[%clk 0:00:05]}  Kb2 {[%clk 0:00:03]} 51. a7 {[%clk 0:00:05]}  Kc1 {[%clk 0:00:03]} 52. Bf3 {[%clk 0:00:05]}  Be3 {[%clk 0:00:03]} 53. Kb4 {[%clk 0:00:03]}  Rxa7 {[%clk 0:00:03]} 54. Rxa7 {[%clk 0:00:02]}  Bxa7 {[%clk 0:00:04]} 55. Kb3 {[%clk 0:00:03]}  Be3 {[%clk 0:00:04]} 56. Kc4 {[%clk 0:00:03]}  Bf4 {[%clk 0:00:05]} 57. Kd3 {[%clk 0:00:03]}  Bg5 {[%clk 0:00:06]} 58. Ke4 {[%clk 0:00:03]}  Bh4 {[%clk 0:00:07]} 59. Kf5 {[%clk 0:00:04]}  Bf2 {[%clk 0:00:08]} 60. Kg4 {[%clk 0:00:04]}  Bb6 {[%clk 0:00:09]} 61. Kh3 {[%clk 0:00:05]}  Ba5 {[%clk 0:00:09]} 62. Kg2 {[%clk 0:00:05]}  d1=Q {[%clk 0:00:10]} 63. Bxd1 {[%clk 0:00:04]} 1/2-1/2


[Site "https://www.chess.com"]

[Event "Titled Tuesday Blitz January 17 Late 2023"]
[White "Lopez Gracia, Fernando"]
[Black "Prado Lobo, Jonas"]
[WhiteFideId "2207184"]
[BlackFideId "32050666"]
[WhiteElo "2255"]
[BlackElo "2313"]
[Result "1/2-1/2"]
[Round "08"]
[TimeControl "180+2"]
[Date "2023.01.17"]
[WhiteClock "0:00:05"]
[BlackClock "0:00:05"]

1. c4 {[%clk 0:02:56]}  e6 {[%clk 0:02:53]} 2. Nf3 {[%clk 0:02:55]}  d5 {[%clk 0:02:54]} 3. g3 {[%clk 0:02:54]}  Nf6 {[%clk 0:02:53]} 4. Bg2 {[%clk 0:02:54]}  Be7 {[%clk 0:02:53]} 5. O-O {[%clk 0:02:53]}  O-O {[%clk 0:02:53]} 6. b3 {[%clk 0:02:51]}  d4 {[%clk 0:02:53]} 7. e3 {[%clk 0:02:50]}  c5 {[%clk 0:02:54]} 8. exd4 {[%clk 0:02:47]}  cxd4 {[%clk 0:02:55]} 9. d3 {[%clk 0:02:47]}  Nc6 {[%clk 0:02:55]} 10. Re1 {[%clk 0:02:48]}  a5 {[%clk 0:02:55]} 11. Ne5 {[%clk 0:02:48]}  Qc7 {[%clk 0:02:49]} 12. Bf4 {[%clk 0:02:43]}  Qb6 {[%clk 0:02:48]} 13. Nxc6 {[%clk 0:02:30]}  bxc6 {[%clk 0:02:49]} 14. Nd2 {[%clk 0:02:23]}  Bb4 {[%clk 0:02:44]} 15. Re2 {[%clk 0:02:19]}  Bb7 {[%clk 0:02:37]} 16. a3 {[%clk 0:02:11]}  Bc3 {[%clk 0:02:36]} 17. Rb1 {[%clk 0:02:12]}  c5 {[%clk 0:02:35]} 18. Bxb7 {[%clk 0:02:09]}  Qxb7 {[%clk 0:02:36]} 19. Bd6 {[%clk 0:02:02]}  Rfc8 {[%clk 0:02:35]} 20. Be5 {[%clk 0:02:02]}  Nd7 {[%clk 0:02:30]} 21. Bf4 {[%clk 0:01:56]}  Nf6 {[%clk 0:02:13]} 22. Ne4 {[%clk 0:01:53]}  Nxe4 {[%clk 0:02:12]} 23. Rxe4 {[%clk 0:01:51]}  Qc6 {[%clk 0:02:05]} 24. Bd2 {[%clk 0:01:51]}  Bxd2 {[%clk 0:01:56]} 25. Qxd2 {[%clk 0:01:52]}  Rcb8 {[%clk 0:01:55]} 26. Ree1 {[%clk 0:01:46]}  Rb6 {[%clk 0:01:50]} 27. b4 {[%clk 0:01:44]}  cxb4 {[%clk 0:01:34]} 28. axb4 {[%clk 0:01:43]}  axb4 {[%clk 0:01:29]} 29. Rxb4 {[%clk 0:01:42]}  h6 {[%clk 0:01:25]} 30. Reb1 {[%clk 0:01:40]}  Rxb4 {[%clk 0:01:21]} 31. Qxb4 {[%clk 0:01:41]}  Qf3 {[%clk 0:01:20]} 32. Qb3 {[%clk 0:01:27]}  Qe2 {[%clk 0:01:15]} 33. Qd1 {[%clk 0:01:15]}  Qa2 {[%clk 0:01:09]} 34. Qb3 {[%clk 0:01:13]}  Qe2 {[%clk 0:01:06]} 35. Qd1 {[%clk 0:01:13]}  Qa2 {[%clk 0:01:01]} 36. Qb3 {[%clk 0:00:59]}  Qd2 {[%clk 0:00:54]} 37. c5 {[%clk 0:00:56]}  Ra2 {[%clk 0:00:53]} 38. Rf1 {[%clk 0:00:57]}  Rc2 {[%clk 0:00:50]} 39. Qb8+ {[%clk 0:00:49]}  Kh7 {[%clk 0:00:50]} 40. Qa7 {[%clk 0:00:48]}  Kg6 {[%clk 0:00:40]} 41. c6 {[%clk 0:00:49]}  Qxd3 {[%clk 0:00:35]} 42. c7 {[%clk 0:00:49]}  Qc4 {[%clk 0:00:29]} 43. Rd1 {[%clk 0:00:49]}  d3 {[%clk 0:00:18]} 44. Qe3 {[%clk 0:00:46]}  d2 {[%clk 0:00:14]} 45. Rxd2 {[%clk 0:00:41]}  Rxd2 {[%clk 0:00:11]} 46. Qxd2 {[%clk 0:00:41]}  Qxc7 {[%clk 0:00:12]} 47. Qd3+ {[%clk 0:00:42]}  f5 {[%clk 0:00:12]} 48. Kg2 {[%clk 0:00:38]}  Qe5 {[%clk 0:00:12]} 49. Qd8 {[%clk 0:00:36]}  Qe4+ {[%clk 0:00:12]} 50. Kg1 {[%clk 0:00:35]}  f4 {[%clk 0:00:11]} 51. Qe8+ {[%clk 0:00:33]}  Kh7 {[%clk 0:00:10]} 52. gxf4 {[%clk 0:00:34]}  Qb1+ {[%clk 0:00:06]} 53. Kg2 {[%clk 0:00:33]}  Qg6+ {[%clk 0:00:07]} 54. Qxg6+ {[%clk 0:00:31]}  Kxg6 {[%clk 0:00:07]} 55. Kf3 {[%clk 0:00:28]}  Kf5 {[%clk 0:00:06]} 56. h3 {[%clk 0:00:26]}  Kg6 {[%clk 0:00:03]} 57. Ke4 {[%clk 0:00:25]}  Kf6 {[%clk 0:00:03]} 58. Ke3 {[%clk 0:00:19]}  Kf5 {[%clk 0:00:03]} 59. Kf3 {[%clk 0:00:19]}  Kg6 {[%clk 0:00:03]} 60. Ke4 {[%clk 0:00:19]}  Kh5 {[%clk 0:00:01]} 61. Ke5 {[%clk 0:00:17]}  Kh4 {[%clk 0:00:01]} 62. Kxe6 {[%clk 0:00:17]}  Kxh3 {[%clk 0:00:02]} 63. Kf7 {[%clk 0:00:18]}  Kg4 {[%clk 0:00:02]} 64. Kxg7 {[%clk 0:00:13]}  h5 {[%clk 0:00:02]} 65. Kg6 {[%clk 0:00:10]}  h4 {[%clk 0:00:02]} 66. f5 {[%clk 0:00:10]}  h3 {[%clk 0:00:02]} 67. f6 {[%clk 0:00:10]}  h2 {[%clk 0:00:03]} 68. f7 {[%clk 0:00:11]}  h1=Q {[%clk 0:00:04]} 69. f8=Q {[%clk 0:00:11]}  Qh5+ {[%clk 0:00:04]} 70. Kg7 {[%clk 0:00:11]}  Qg5+ {[%clk 0:00:04]} 71. Kh8 {[%clk 0:00:10]}  Qh5+ {[%clk 0:00:05]} 72. Kg8 {[%clk 0:00:10]}  Qe5 {[%clk 0:00:05]} 73. f3+ {[%clk 0:00:07]}  Kg3 {[%clk 0:00:05]} 74. Kh7 {[%clk 0:00:06]}  Qh5+ {[%clk 0:00:05]} 75. Qh6 {[%clk 0:00:05]}  Qf7+ {[%clk 0:00:05]} 76. Qg7+ {[%clk 0:00:04]}  Qxg7+ {[%clk 0:00:05]} 77. Kxg7 {[%clk 0:00:05]}  Kf4 {[%clk 0:00:06]} 78. Kf6 {[%clk 0:00:05]}  Kxf3 {[%clk 0:00:05]} 1/2-1/2


[Site "https://www.chess.com"]